fUSD/lending_fUSD_20250926
["ID","MTS","AMOUNT","RATE_DAILY","PERIOD"]
[387810022,1758886232700,-1356.355005,0.00019877,2]
[387810027,1758886232719,-329.5745001,0.00019877,2]
[387810035,1758886232778,-5107.18,0.00019877,2]
[387810038,1758886232790,-460.51348595,0.00019877,2]
[387810040,1758886232802,-994.07828321,0.00019877,2]
[387810042,1758886232814,-5854.98232609,0.00019877,2]
[387810632,1758886239493,-6171.314372,0.00019877,2]
[387810633,1758886239505,-1502.62659752,0.00019877,2]
[387810646,1758886239617,-459.68,0.00019877,2]
[387810648,1758886239629,-9954.47886607,0.00019877,2]
[387810650,1758886239638,-108416.81623273,0.00019888,2]
[387810652,1758886239647,-160.47105015,0.000199,2]
[387810654,1758886239656,-160.04191084,0.000199,2]
[387810656,1758886239666,-12160.5119402,0.000199,2]
[387810658,1758886239677,-837.64,0.000199,2]
[387810665,1758886239735,-6584.72578008,0.000199,2]
[387810667,1758886239746,-4671.34007186,0.000199,2]
[387810669,1758886239755,-368.24618182,0.000199,2]
[387810671,1758886239765,-202.84663451,0.000199,2]
[387810673,1758886239774,-168.6276199,0.000199,2]
[387810675,1758886239783,-655.87406462,0.000199,2]
[387810677,1758886239792,-167.99000834,0.000199,2]
[387810679,1758886239801,-468.51629592,0.000199,2]
[387810681,1758886239810,-5000.0,0.000199,2]
[387810683,1758886239819,-3945.97111421,0.00019912,2]
[387810685,1758886239829,-108416.81623273,0.00019921,2]
[387810687,1758886239837,-3945.97111421,0.0001993,2]
[387810689,1758886239846,-3945.97111421,0.00019931,2]
[387810691,1758886239857,-3945.97111421,0.00019935,2]
[387810693,1758886239870,-583.65505558,0.00019937,2]
[387810700,1758886239927,-610.56010705,0.00019937,2]
[387810707,1758886239980,-1315.68623605,0.00019937,2]
[387810712,1758886240017,-460.36906848,0.00019937,2]
[387810714,1758886240028,-14575.17125966,0.00019937,2]
[387810901,1758886241892,-314.94499064,0.00019937,2]
[387810920,1758886242070,-90556.42951527,0.00019937,2]
[387810922,1758886242081,-3945.97111421,0.00019949,2]
[387810925,1758886242091,-108416.81623273,0.00019961,2]
[387810927,1758886242100,-500.0,0.00019973,2]
[387810929,1758886242109,-500.0,0.00019973,2]
[387810930,1758886242118,-500.0,0.00019973,2]
[387810932,1758886242127,-108416.81623273,0.00019982,2]
[387810958,1758886242137,-1000.0,0.00019999,2]
[387810963,1758886242394,-348.17094213,0.00019999,2]
[387810965,1758886242404,-21464.68238926,0.0002,2]
[387810967,1758886242413,-487426.24513662,0.0002,2]
[387810969,1758886242423,-1000.0,0.0002,2]
[387810971,1758886242432,-1000.0,0.0002,2]
[387810973,1758886242441,-1000.0,0.0002,2]
[387810975,1758886242451,-1000.0,0.0002,2]
[387810977,1758886242459,-1000.0,0.0002,2]
[387810979,1758886242468,-766.0,0.0002,7]
[387810981,1758886242478,-1000.0,0.0002,3]
[387810983,1758886242487,-1000.0,0.0002,3]
[387810985,1758886242498,-1000.0,0.0002,3]
[387810987,1758886242507,-1000.0,0.0002,3]
[387810989,1758886242517,-1000.0,0.0002,3]
[387810991,1758886242527,-1000.0,0.0002,4]
[387810993,1758886242536,-1000.0,0.0002,4]
[387810995,1758886242546,-1000.0,0.0002,4]
[387810997,1758886242555,-1000.0,0.0002,4]
[387810999,1758886242564,-1000.0,0.0002,4]
[387811001,1758886242577,-1000.0,0.0002,4]
[387811003,1758886242586,-1000.0,0.0002,3]
[387811005,1758886242596,-1000.0,0.0002,3]
[387811007,1758886242606,-1000.0,0.0002,3]
[387811009,1758886242615,-1000.0,0.0002,5]
[387811011,1758886242624,-1000.0,0.0002,5]
[387811013,1758886242635,-1000.0,0.0002,5]
[387811016,1758886242644,-1000.0,0.0002,5]
[387811017,1758886242654,-1000.0,0.0002,5]
[387811019,1758886242664,-1000.0,0.0002,5]
[387811021,1758886242673,-1001.0,0.0002,2]
[387811023,1758886242683,-1000.0,0.0002,2]
[387811025,1758886242693,-1000.0,0.0002,3]
[387811027,1758886242703,-1000.0,0.0002,3]
[387811029,1758886242713,-516.91207795,0.0002,3]
[387811031,1758886242723,-1000.0,0.0002,3]
[387811033,1758886242732,-1028629.93508287,0.0002,2]
[387811035,1758886242743,-10757.93074359,0.0002,2]
[387811037,1758886242753,-1510.99265638,0.0002,2]
[387811039,1758886242763,-207974.53713082,0.0002,2]
[387811309,1758886245258,-21788.0,0.0002,2]
[387811325,1758886245445,-1798.71698726,0.0002,2]
[387811673,1758886249211,-290.12577006,0.0002,2]
[387811675,1758886249223,-20746.42426838,0.0002,2]
[387811685,1758886249304,-42012.3302645,0.0002,2]
[387811729,1758886249697,-24315.14087716,0.0002,2]
[387811731,1758886249708,-1998.85883626,0.0002,2]
[387811733,1758886249719,-1132.12,0.0002,2]
[387813540,1758886358044,500.0,0.00030136,120]
[387813541,1758886358485,500.0,0.00030136,120]
[387813542,1758886358816,500.0,0.00030136,120]
[387813543,1758886359032,600.0,0.00030136,120]
[387813549,1758886425928,810.478498,0.00030136,120]
[387813569,1758886866228,-231.65600319,0.00018676,2]
[387813570,1758886868026,-181.37252119,0.00018676,2]
[387813571,1758886870480,-250.0,0.00018676,2]
[387813572,1758886874728,-151.0,0.00018676,2]
[387813573,1758886877445,-160.47,0.00018676,2]
[387813574,1758886877467,-40.26147562,0.00018676,2]
[387813575,1758886877490,-26.85944272,0.00018693,2]
[387813576,1758886879372,-141.87599128,0.00018693,2]
[387813577,1758886883417,-267.5312923,0.00018638,2]
[387813578,1758886887492,-234.05433242,0.00018638,2]
[387813579,1758886890922,-292.84352905,0.00018638,2]
[387813580,1758886892838,152.93,9.349e-05,2]
[387813581,1758886892954,-199.49432278,0.00018638,2]
[387813582,1758886898785,-202.87434855,0.00018638,2]
[387813583,1758886901749,-152.0,0.00018638,2]
[387813584,1758886903286,-169.96383065,0.00018638,2]
[387813585,1758886905756,-225.48834425,0.00018638,2]
[387813586,1758886905781,-109.92165575,0.00018698,2]
[387813587,1758886910585,-43.00834425,0.00018698,2]
[387813593,1758887098798,-231.80566051,0.00018639,2]
[387813594,1758887100228,-119.61433949,0.00018639,2]
[387813595,1758887107945,150.0,0.00018,2]
[387813596,1758887108252,150.0,0.00018,2]
[387813597,1758887109689,152.91018804,0.00018,2]
[387813598,1758887109782,150.0,0.00018,2]
[387813599,1758887110858,-150.0,0.00018667,2]
[387813600,1758887112726,150.0,0.00018,2]
[387813601,1758887112758,150.0,0.00018,2]
[387813602,1758887116238,150.0,0.00018,2]
[387813603,1758887120841,150.0,0.00018,2]
[387813604,1758887129047,150.00000001,0.00018,2]
[387813605,1758887129079,150.0,0.00018,2]
[387813606,1758887129245,150.0,0.00018,2]
[387813607,1758887129370,180.5127242,0.00018,2]
[387813608,1758887129397,150.0,0.00018,2]
[387813609,1758887129651,150.0,0.00018,2]
[387813610,1758887132143,150.0,0.00018,2]
[387813611,1758887199189,-201.78537833,0.00018788,2]
[387813612,1758887201574,-300.0,0.00018788,2]
[387813615,1758887235957,188.11,0.0001831,2]
[387813616,1758887244026,-186.1127622,0.00018788,2]
[387813617,1758887288458,250.0,0.00018245,2]
[387813618,1758887318067,5903.45,0.00018272,2]
[387813619,1758887320544,163.79,0.00018261,2]
[387813620,1758887368408,1000.0,0.00018261,2]
[387813621,1758887423407,3000.0,0.0002,30]
[387813770,1758887433144,-580.44185947,0.00018788,2]
[387813772,1758887433154,-195.0,0.00018788,2]
[387813774,1758887433165,-250.0,0.00018788,2]
[387813776,1758887433175,-291.25,0.00018789,2]
[387813778,1758887433189,-846.33,0.000188,2]
[387813780,1758887433199,-172.31,0.0001893,2]
[387813782,1758887433209,-277.7628,0.00018953,2]
[387813784,1758887433219,-133.05024388,0.00018953,2]
[387813786,1758887433234,-4745.17760827,0.00018953,2]
[387813788,1758887433243,-150.0,0.00018995,7]
[387813790,1758887433255,-1050.85,0.00018999,2]
[387813792,1758887433265,-150.99,0.00018999,2]
[387813794,1758887433275,-521.62691022,0.00019,2]
[387813805,1758887433368,-3707.1500239,0.00019,2]
[387813807,1758887433380,-493.45,0.00019,2]
[387813809,1758887433392,-277.77306588,0.00019,2]
[387813811,1758887433402,-999.99,0.00019,2]
[387813813,1758887433412,-150.0,0.00019,2]
[387813815,1758887433421,-119.56957986,0.00019,2]
[387813817,1758887433433,-30.43042014,0.00019,2]
[387813820,1758887433444,-150.0,0.00019,2]
[387813822,1758887433454,-150.0,0.00019,2]
[387813824,1758887433464,-150.0,0.00019,2]
[387813825,1758887433473,-150.0,0.00019,2]
[387813828,1758887433483,-1050.98392314,0.00019037,2]
[387813835,1758887433546,-503.24607686,0.00019037,2]
[387813837,1758887433557,-195.18,0.00019037,2]
[387813839,1758887433569,-200.0,0.00019041,2]
[387813841,1758887433579,-6935.24282592,0.00019043,2]
[387813843,1758887433589,-850.0,0.00019051,2]
[387813845,1758887433599,-163.86,0.00019053,2]
[387813847,1758887433609,-4878.22785213,0.00019058,2]
[387813849,1758887433623,-433.24499304,0.00019162,2]
[387813851,1758887433632,-500.0,0.00019162,2]
[387813853,1758887433642,-500.0,0.00019162,2]
[387813855,1758887433652,-500.0,0.00019162,2]
[387813857,1758887433662,-500.0,0.00019162,2]
[387813859,1758887433672,-508.34774267,0.00019162,2]
[387813861,1758887433681,-500.0,0.00019162,2]
[387813863,1758887433690,-500.0,0.00019162,2]
[387813865,1758887433701,-368.792214,0.00019162,2]
[387813867,1758887433710,-500.0,0.00019162,2]
[387813869,1758887433720,-623.91583145,0.00019162,2]
[387813871,1758887433729,-500.0,0.00019162,2]
[387813873,1758887433739,-500.0,0.00019162,2]
[387813875,1758887433749,-500.0,0.00019162,2]
[387813877,1758887433760,-500.0,0.00019162,2]
[387813879,1758887433770,-4878.22785213,0.00019163,2]
[387813881,1758887433779,-151.0,0.00019178,2]
[387813883,1758887433789,-1260.69,0.00019178,2]
[387813885,1758887433799,-634.3330127,0.00019179,2]
[387813887,1758887433810,-606.49715702,0.00019184,2]
[387813889,1758887433820,-4878.22785213,0.00019269,2]
[387813891,1758887433830,-150.0,0.00019333,4]
[387813893,1758887433840,-813.50490733,0.00019374,2]
[387813896,1758887433853,-4064.7229448,0.00019374,2]
[387813898,1758887433863,-300.0,0.000194,7]
[387813900,1758887433874,-4878.22785213,0.00019479,2]
[387813902,1758887433884,-600.0,0.000195,7]
[387813904,1758887433894,-351.42,0.0001957,2]
[387813906,1758887433904,-27179.56194199,0.00019573,2]
[387813909,1758887433917,-296.30613985,0.00019573,2]
[387813911,1758887433928,-1344.89,0.00019573,2]
[387813913,1758887433941,-93848.70777292,0.00019573,2]
[387813915,1758887433951,-4878.22785213,0.00019584,2]
[387813917,1758887433960,-900.0,0.000196,7]
[387813919,1758887433971,-4878.22785213,0.0001969,2]
[387813921,1758887433981,-1300.0,0.000197,7]
[387813923,1758887433991,-264.95404763,0.00019726,2]
[387813925,1758887434001,-4878.22785213,0.00019795,2]
[387813927,1758887434011,-267.43651942,0.00019795,2]
[387813929,1758887434021,-1600.0,0.000198,7]
[387813931,1758887434031,-169.65743184,0.000198,2]
[387813933,1758887434042,-175.29018719,0.00019809,2]
[387813935,1758887434053,-172.75378444,0.00019809,2]
[387813937,1758887434063,-500.0,0.00019809,2]
[387813939,1758887434074,-194.65124119,0.00019809,2]
[387813941,1758887434084,-176.00075113,0.00019809,2]
[387813943,1758887434095,-88750.64604548,0.0001981,2]
[387813945,1758887434105,-467.87943218,0.00019858,2]
[387813947,1758887434115,-23592.54199591,0.00019869,2]
[387813950,1758887434125,-467.87943218,0.00019876,2]
[387813952,1758887434136,-12855.13678188,0.00019876,2]
[387813954,1758887434146,-467.87943218,0.00019893,2]
[387813956,1758887434157,-467.87943218,0.00019897,2]
[387813958,1758887434167,-171.29081218,0.00019899,2]
[387813960,1758887434177,-432.74135655,0.00019899,2]
[387813962,1758887434190,-432.7413565,0.00019899,2]
[387813964,1758887434200,-432.7413565,0.00019899,2]
[387813966,1758887434210,-432.7413565,0.00019899,2]
[387813968,1758887434220,-432.7413565,0.00019899,2]
[387813970,1758887434231,-432.7413565,0.000199,2]
[387813972,1758887434241,-1000.0,0.000199,2]
[387813995,1758887434431,-4875.5992,0.000199,2]
[387813997,1758887434452,-5000.0,0.000199,2]
[387813999,1758887434462,-895.64032204,0.000199,2]
[387814001,1758887434472,-4878.22785213,0.000199,2]
[387814003,1758887434481,-300.0,0.000199,7]
[387814006,1758887434492,-320.72790626,0.000199,2]
[387814007,1758887434507,-160.47105015,0.000199,2]
[387814010,1758887434517,-245.49745454,0.000199,2]
[387814012,1758887434526,-251.98501251,0.000199,2]
[387814013,1758887434535,-9553.03037109,0.000199,2]
[387814015,1758887434544,-12855.13678188,0.00019912,2]
[387814017,1758887434553,-12855.13678188,0.0001992,2]
[387814019,1758887434563,-9268.88151624,0.00019922,2]
[387814028,1758887434629,-866.5247247,0.00019922,2]
[387814030,1758887434641,-543.785283,0.00019922,2]
[387814032,1758887434652,-512.25234728,0.00019922,2]
[387814039,1758887434706,-339.72,0.00019922,2]
[387814041,1758887434717,-1075.21999539,0.00019922,2]
[387814042,1758887434729,-248.75291527,0.00019922,2]
[387814043,1758887434738,-587.21994355,0.00019923,2]
[387814565,1758887439838,-754.56966197,0.0001971,2]
[387814567,1758887439875,-20683.16048425,0.0001971,2]
[387814570,1758887439886,-3573.49765974,0.0001971,2]
[387814572,1758887439898,-12198.30627695,0.0001971,2]
[387814579,1758887439956,-5000.00111123,0.0001971,2]
[387814585,1758887440004,-2539.0,0.0001971,2]
[387814587,1758887440016,-4785.13199616,0.0001971,2]
[387814590,1758887440036,-571.87072373,0.0001971,2]
[387814592,1758887440047,-575.6,0.0001971,2]
[387814595,1758887440059,-3222.11563782,0.0001971,2]
[387814599,1758887440097,-4336.96284965,0.0001971,2]
[387814604,1758887440135,-500.0,0.0001971,2]
[387814803,1758887442364,-11290.97039464,0.0001971,2]
[387814825,1758887442554,-395.78490007,0.0001971,2]
[387814850,1758887442810,-87.8888861,0.0001971,2]
[387814852,1758887442822,-4203.71497097,0.0001971,2]
[387814856,1758887442842,-397.74511496,0.0001971,2]
[387814858,1758887442858,-116762.98813176,0.0001971,2]
[387814860,1758887442867,-432.7413565,0.000199,2]
[387814862,1758887442877,-312.34419728,0.000199,2]
[387814864,1758887442886,-23005.32205236,0.00019923,2]
[387814866,1758887442895,-23592.54199591,0.00019933,2]
[387814868,1758887442905,-23592.54199591,0.00019936,2]
[387814869,1758887442915,-467.87943218,0.00019944,2]
[387814870,1758887442925,-467.87943218,0.00019951,2]
[387814871,1758887442935,-12855.13678188,0.00019957,2]
[387814873,1758887442945,-23592.54199591,0.00019964,2]
[387814875,1758887442955,-500.0,0.0001997,2]
[387814877,1758887442964,-500.0,0.0001997,2]
[387814880,1758887442974,-500.0,0.0001997,2]
[387814882,1758887442984,-500.0,0.0001997,2]
[387814884,1758887442996,-525.91151911,0.0001997,2]
[387814886,1758887443005,-1000.0,0.0001997,2]
[387814888,1758887443014,-1000.0,0.0001997,2]
[387814890,1758887443023,-1000.0,0.0001997,2]
[387814892,1758887443032,-1910.44855493,0.0001997,2]
[387814894,1758887443042,-500.0,0.0001997,2]
[387814896,1758887443052,-1000.0,0.0001997,2]
[387814898,1758887443062,-23592.54199591,0.00019972,2]
[387814900,1758887443072,-500.0,0.00019973,2]
[387814902,1758887443082,-500.0,0.00019973,2]
[387814904,1758887443092,-500.0,0.00019973,2]
[387814906,1758887443101,-500.0,0.00019973,2]
[387814908,1758887443111,-511.48863841,0.00019973,2]
[387814910,1758887443121,-500.0,0.00019973,2]
[387814912,1758887443131,-500.90018224,0.00019973,2]
[387814914,1758887443140,-500.0,0.00019973,2]
[387814916,1758887443150,-500.0,0.00019973,2]
[387814918,1758887443159,-289.8097871,0.00019973,2]
[387814920,1758887443169,-500.0,0.00019973,2]
[387814922,1758887443179,-500.0,0.00019973,2]
[387814924,1758887443188,-12855.13678188,0.00019977,2]
[387814926,1758887443201,-12855.13678188,0.00019978,2]
[387814928,1758887443210,-467.87943218,0.00019984,2]
[387814930,1758887443220,-190.46963098,0.0001999,2]
[387814932,1758887443230,-23592.54199591,0.00019992,2]
[387814934,1758887443239,-863.5738752,0.00019996,2]
[387814936,1758887443249,-115269.6566276,0.00019997,2]
[387814938,1758887443258,-42465.3712543,0.00019999,2]
[387814940,1758887443268,-440.927031,0.00019999,2]
[387814942,1758887443278,-500.0,0.00019999,2]
[387814944,1758887443288,-198.41019812,0.00019999,2]
[387814946,1758887443297,-500.0,0.0002,2]
[387814949,1758887443308,-45170.90917868,0.0002,2]
[387814951,1758887443318,-879636.98348348,0.0002,2]
[387814953,1758887443327,-105143.74318502,0.0002,2]
[387814955,1758887443337,-350.28340573,0.0002,2]
[387814956,1758887443347,-1441.46771697,0.0002,5]
[387814959,1758887443356,-25224.4545419,0.0002,2]
[387814960,1758887443366,-45292.13443479,0.0002,5]
[387814963,1758887443376,-8281.57559925,0.0002,4]
[387814965,1758887443385,-868699.30772896,0.0002,2]
[387814967,1758887443397,-6601.52174531,0.0002,2]
[387814972,1758887443435,-2554.72909684,0.0002,2]
[387814974,1758887443446,-5041.29232586,0.0002,2]
[387814976,1758887443458,-143561.07168127,0.0002,2]
[387814978,1758887443469,-2338.83688524,0.0002,2]
[387814981,1758887443480,-18686.99054394,0.0002,2]
[387814983,1758887443491,-4217.54015466,0.0002,2]
[387814985,1758887443503,-2244.59832752,0.0002,2]
[387814987,1758887443514,-1740.0911033,0.0002,2]
[387814989,1758887443525,-1034.0,0.0002,2]
[387815036,1758887444030,-778.87817224,0.00019162,2]
[387815038,1758887444044,-534.79126136,0.00019162,2]
[387815249,1758887446093,3000.0,0.0002,30]
[387815271,1758887446285,-204.9405664,0.00019162,2]
[387815273,1758887446294,-152.08802378,0.00019178,2]
[387815275,1758887446305,-569.32398127,0.00019178,2]
[387815277,1758887446318,-8.58742855,0.00019436,2]
[387815289,1758887446422,-313.62008107,0.00019436,2]
[387815291,1758887446434,-607.399843,0.00019436,2]
[387815292,1758887446518,-589.00264738,0.00019436,2]
[387815293,1758887446527,-283.25853258,0.0001971,2]
[387815299,1758887446955,-1235.35146742,0.0001971,2]
[387815300,1758887446965,-432.7413565,0.000199,2]
[387815302,1758887446975,-1518.61,0.00019984,2]
[387815304,1758887446985,-15418.35178624,0.0002,2]
[387815306,1758887446997,-175745.15266024,0.0002,2]
[387815316,1758887447083,-21461.90703632,0.0002,2]
[387815602,1758887450004,-4775.28,0.00019172,2]
[387815604,1758887450015,-21485.52,0.0002,2]
[387816828,1758887802504,500.0,0.00030113,120]
[387816830,1758888050587,312.0,0.00030137,120]
[387816831,1758888143175,312.0,0.00030137,120]
[387816832,1758888182851,-188.08,0.00018665,2]
[387816833,1758888187549,-61.92,0.00018665,2]
[387816834,1758888293343,181.0,0.00030136,120]
[387816835,1758888308389,150.0,0.00017901,2]
[387816836,1758888308468,150.0,0.00017901,2]
[387816837,1758888308680,150.0,0.00017901,2]
[387816838,1758888313260,150.0,0.00017901,2]
[387816839,1758888314589,222.77289877,0.00017901,2]
[387816840,1758888315956,150.0,0.00017901,2]
[387816841,1758888317011,150.73005378,0.00017901,2]
[387816842,1758888327221,150.0,0.00017901,2]
[387816843,1758888327348,150.0,0.00017901,2]
[387816844,1758888329198,150.0,0.00017901,2]
[387816845,1758888330338,150.0,0.00017901,2]
[387816848,1758888471051,-257.92284308,0.00018586,2]
[387816849,1758888476278,-188.36964918,0.00018586,2]
[387816850,1758888479466,-156.87180028,0.00018586,2]
[387816851,1758888481422,-296.60996957,0.00018586,2]
[387816852,1758888483607,-639.60178028,0.00018586,2]
[387816853,1758888489613,-306.70395761,0.00018586,2]
[387816855,1758888491780,-150.0,0.0001871,2]
[387816856,1758888493463,150.0,0.00018634,7]
[387816858,1758888525943,-224.29814978,0.00018649,2]
[387816859,1758888529072,-167.17621439,0.00018649,2]
[387816860,1758888533142,-188.64811563,0.00018649,2]
[387816861,1758888534632,-262.47758883,0.00018649,2]
[387816864,1758888538043,-157.39993137,0.00018649,2]
[387816865,1758888549074,-153.84,0.00018613,2]
[387816866,1758888550623,-200.2557781,0.00018613,2]
[387816867,1758888555373,-54.2042219,0.00018613,2]
[387816868,1758888625057,151.0,0.00030137,120]
[387816920,1758888632434,-500.0,0.00018613,2]
[387816921,1758888632444,-151.0,0.0001871,2]
[387816922,1758888632454,-151.0,0.0001871,2]
[387816923,1758888632464,-250.0,0.00018772,2]
[387816924,1758888632474,-338.06814635,0.00018833,2]
[387816925,1758888632486,-546.50185365,0.00018833,2]
[387816926,1758888632554,-28.72,0.00018833,2]
[387816927,1758888632565,-300.0,0.00018837,2]
[387816928,1758888632578,-372.89386136,0.0001885,2]
[387816929,1758888632591,-63.74613864,0.0001885,2]
[387816930,1758888632600,-150.0,0.00018896,2]
[387816931,1758888632610,-200.0,0.00018997,2]
[387816932,1758888632622,-364.79598704,0.00018997,2]
[387816933,1758888632635,-308.20401296,0.00018997,2]
[387816934,1758888632645,-691.51344452,0.00018997,2]
[387816935,1758888632693,-508.48655548,0.00018997,2]
[387816936,1758888632703,-500.0,0.00018998,2]
[387816937,1758888632713,-500.0,0.00018998,2]
[387816938,1758888632722,-500.0,0.00018998,2]
[387816939,1758888632732,-500.0,0.00018998,2]
[387816940,1758888632742,-500.0,0.00018998,2]
[387816941,1758888632752,-500.0,0.00018998,2]
[387816942,1758888632761,-500.0,0.00018998,2]
[387816943,1758888632771,-500.0,0.00018998,2]
[387816944,1758888632780,-500.0,0.00018998,2]
[387816945,1758888632791,-500.0,0.00018998,2]
[387816946,1758888632800,-500.0,0.00018998,2]
[387816947,1758888632810,-500.0,0.00018998,2]
[387816948,1758888632820,-500.0,0.00018998,2]
[387816949,1758888632830,-500.0,0.00018998,2]
[387816950,1758888632840,-500.0,0.00018998,2]
[387816951,1758888632850,-500.0,0.00018998,2]
[387816952,1758888632860,-500.0,0.00018998,2]
[387816953,1758888632871,-500.0,0.00018998,2]
[387816954,1758888632881,-318.42018241,0.00018998,2]
[387816955,1758888632890,-500.0,0.00018998,2]
[387816956,1758888632900,-500.0,0.00018998,2]
[387816957,1758888632910,-500.0,0.00018998,2]
[387816958,1758888632920,-500.0,0.00018998,2]
[387816959,1758888632929,-500.0,0.00018998,2]
[387816960,1758888632939,-500.0,0.00018998,2]
[387816961,1758888632949,-500.0,0.00018998,2]
[387816962,1758888632958,-500.0,0.00018998,2]
[387816963,1758888632969,-500.0,0.00018998,2]
[387816964,1758888632979,-594.5285476,0.00018998,2]
[387816965,1758888632988,-500.0,0.00018998,2]
[387816966,1758888632998,-500.0,0.00018998,2]
[387816967,1758888633008,-500.0,0.00018998,2]
[387816968,1758888633018,-500.0,0.00018998,2]
[387816969,1758888633028,-500.0,0.00018998,2]
[387816970,1758888633038,-500.0,0.00018998,2]
[387816971,1758888633048,-500.0,0.00018998,2]
[387816972,1758888633059,-550.0,0.00018998,2]
[387816973,1758888633069,-2024.10058294,0.00019,2]
[387816974,1758888633079,-166.06,0.00019007,2]
[387816975,1758888633089,-999.99,0.00019007,2]
[387816976,1758888633099,-9999.99,0.00019007,2]
[387816977,1758888633110,-150.99,0.00019007,2]
[387816978,1758888633119,-1518.61,0.00019041,2]
[387816979,1758888633129,-500.0,0.00019177,2]
[387816980,1758888633139,-277.20466567,0.00019177,2]
[387816981,1758888633149,-165.98680406,0.00019177,2]
[387816982,1758888633159,-5000.0,0.00019178,2]
[387816983,1758888633169,-271.82649549,0.00019219,2]
[387816984,1758888633179,-1518.61,0.00019315,2]
[387816985,1758888633190,-700.31116706,0.00019412,2]
[387816986,1758888633200,-732.1077,0.00019412,2]
[387816987,1758888633209,-2126.8322,0.00019412,2]
[387816988,1758888633220,-700.31116702,0.00019455,2]
[387816989,1758888633230,-13710.9127,0.00019473,2]
[387816990,1758888633241,-700.31116702,0.00019498,2]
[387816991,1758888633251,-200.0,0.000195,2]
[387816992,1758888633261,-200.0,0.000195,2]
[387816993,1758888633272,-500.0,0.000195,2]
[387816994,1758888633283,-151.0,0.000195,2]
[387816995,1758888633293,-500.0,0.000195,2]
[387816996,1758888633303,-151.0,0.000195,2]
[387816997,1758888633313,-500.0,0.000195,2]
[387816998,1758888633323,-618.45682338,0.000195,2]
[387816999,1758888633333,-151.0,0.000195,2]
[387817000,1758888633343,-151.0,0.000195,2]
[387817001,1758888633353,-151.0,0.000195,2]
[387817002,1758888633363,-151.0,0.000195,2]
[387817003,1758888633375,-200.0,0.000195,2]
[387817004,1758888633385,-151.0,0.000195,2]
[387817005,1758888633395,-500.0,0.000195,2]
[387817006,1758888633406,-151.0,0.000195,2]
[387817007,1758888633416,-315.60292304,0.000195,2]
[387817008,1758888633426,-151.0,0.000195,2]
[387817009,1758888633436,-151.0,0.000195,2]
[387817010,1758888633447,-151.0,0.000195,2]
[387817011,1758888633457,-151.0,0.000195,2]
[387817012,1758888633467,-151.0,0.000195,2]
[387817013,1758888633478,-151.0,0.000195,2]
[387817014,1758888633488,-151.0,0.000195,2]
[387817015,1758888633498,-151.0,0.000195,2]
[387817016,1758888633508,-151.0,0.000195,2]
[387817017,1758888633518,-151.0,0.000195,2]
[387817018,1758888633528,-151.0,0.000195,2]
[387817019,1758888633538,-151.0,0.000195,2]
[387817020,1758888633548,-151.0,0.000195,2]
[387817021,1758888633558,-151.0,0.000195,2]
[387817022,1758888633569,-151.0,0.000195,2]
[387817023,1758888633581,-151.0,0.000195,2]
[387817024,1758888633591,-151.0,0.000195,2]
[387817025,1758888633600,-151.0,0.000195,2]
[387817026,1758888633611,-151.0,0.000195,2]
[387817027,1758888633621,-151.0,0.000195,2]
[387817028,1758888633631,-151.0,0.000195,2]
[387817029,1758888633642,-151.0,0.000195,2]
[387817030,1758888633654,-151.0,0.000195,2]